Cogmind - Beta 10.2 @@@ ROGUE MODE // 2021.03.06 @ 10:22:39 Player: MoonDog Result: Self-destructed Performance ------------- Evolutions (1) 500 Regions Visited (3) 600 Robots Destroyed (6) 30 Value Destroyed (74) 74 Prototype IDs (0) 0 Alien Tech Used (0) 0 Bonus (0) 0 TOTAL SCORE: 1204 Bonus ------- None Cogmind --------- Core Integrity 154/400 Matter 240/300 Energy 100/100 System Corruption 0% Temperature Cool (0) Movement Core (50) Location -9/Storage Parts ------- > --- POWER (1) -------- (None) > --- PROPULSION (2) --- (None) > --- UTILITY (4) ------ Signal Interpreter Improved Signal Interpreter > --- WEAPON (2) ------- (None) > --- INVENTORY (4) ---- Small Storage Unit Large Battery (300) Peak State ------------ > --- POWER ------------ Light Ion Engine > --- PROPULSION ------- Wheel Wheel > --- UTILITY ---------- Heat Sink Transport Network Coupler > --- WEAPON ----------- EM Pulse Gun > --- INVENTORY -------- Small Storage Unit Large Storage Unit Large Battery [Rating: 6] Favorites ----------- Power Light Ion Engine Engine Light Ion Engine Propulsion Wheel Wheel Wheel Utility Transport Network Coupler Device Heat Sink Storage Large Storage Unit Processor Transport Network Coupler Hackware Hacking Suite Weapon EM Pulse Gun Energy Gun EM Pulse Gun Build | -11 -10 -9 -9 ------- Run | Scr Mat Mat Sto Slots Evolved 2 | . . 2 . Power . | . . . . Propulsion . | . . . . Utility 2 | . . 2 . Weapon . | . . . . Parts Attached 13 | 3 7 1 2 Power 2 | 1 1 . . Engine 2 | 1 1 . . Core . | . . . . Reactor . | . . . . Propulsion 3 | 1 2 . . Treads . | . . . . Leg . | . . . . Wheel 3 | 1 2 . . Hover . | . . . . Flight . | . . . . Utility 7 | . 4 1 2 Device 2 | . 1 . 1 Storage 1 | . 1 . . Processor 3 | . 1 1 1 Hackware 1 | . 1 . . Protection . | . . . . Artifact . | . . . . Weapon 1 | 1 . . . Energy Gun 1 | 1 . . . Energy Cannon . | . . . . Ballistic Gun . | . . . . Ballistic Cannon . | . . . . Launcher . | . . . . Special Weapon . | . . . . Impact Weapon . | . . . . Slashing Weapon . | . . . . Piercing Weapon . | . . . . Special Melee Weapon . | . . . . Unidentified Prototypes . | . . . . Parts Lost 5 | . 3 . 2 Power 1 | . 1 . . Propulsion 1 | . 1 . . Utility 2 | . . . 2 Weapon 1 | . 1 . . Highest Loss Streak 3 | . 3 . 1 Average Slot Usage (%) 45 | . 58 22 27 Engine 2 | . 4 . . Wheel 11 | . 18 . . Device 5 | . 5 . 9 Storage 3 | . 5 . . Processor 11 | . 10 11 14 Hackware 3 | . . 11 3 Energy Gun 7 | . 12 . . Naked Turns . | . . . . Heaviest Build 21 | 3 21 . 2 Greatest Support 20 | 3 20 3 3 Greatest Overweight (x) 1 | . 1 . . Average Overweight (x) . | . . . . Largest Inventory Capacity 10 | 4 10 4 4 Average Capacity 5 | 4 5 4 4 Most Carried 5 | 4 5 3 3 Average Carried 3 | 2 3 3 2 Final Capacity 4 | 4 4 4 4 Final Carried 4 | 4 4 3 2 Class Distribution -------------------- 100% | Mutant Dominant Class ---------------- Mutant | -10/Materials Mutant | -9/Materials Mutant | -9/Storage Resources | -11 -10 -9 -9 ----------- Run | Scr Mat Mat Sto Matter Collected 245 | 230 15 . . Remotely . | . . . . Salvage Created 228 | 115 113 . . Parts 13 | 8 5 . . Haulers Intercepted 1 | . 1 . . Recyclers Shooed 1 | 1 . . . Parts Field Recycled . | . . . . Retrieved Matter . | . . . . Parts Self-Destructed . | . . . . Prevented . | . . . . Kills | -11 -10 -9 -9 ------- Run | Scr Mat Mat Sto Combat Hostiles Destroyed . | . . . . Classes Destroyed 4 | 2 2 . . Tunneler 2 | 2 . . . Hauler 1 | . 1 . . Recycler 2 | 1 1 . . Watcher 1 | . 1 . . Best Kill Streak 2 | 2 2 . . Combat Bots Only . | . . . . Max Kills in Single Turn 2 | 1 2 . . Gunslinging . | . . . . Exploded . | . . . . Melee . | . . . . Uniques/NPCs Destroyed . | . . . . Combat | -11 -10 -9 -9 -------- Run | Scr Mat Mat Sto Damage Taken 543 | . 230 161 152 Core 300 | . 54 161 85 Absorbed by Shields . | . . . . Core Remaining (%) 89 | 100 78 . . Volleys Fired 16 | 7 9 . . Largest 1 | 1 1 . . Hottest 40 | 40 40 . . Shots Fired 16 | 7 9 . . Gun 16 | 7 9 . . Cannon . | . . . . Launcher . | . . . . Special . | . . . . Kinetic . | . . . . Thermal . | . . . . Explosive . | . . . . Electromagnetic 16 | 7 9 . . Robot Hit Streak 11 | 2 11 . . Robot Miss Streak 1 | 1 . . . Penetration Max . | . . . . Secondary Targets . | . . . . Shots Hit Robots 14 | 5 9 . . Core Hits 6 | 4 2 . . Critical Hits . | . . . . Critical Kills . | . . . . Critical Parts Destroyed . | . . . . Melee Attacks . | . . . . Impact . | . . . . Slashing . | . . . . Piercing . | . . . . Sneak Attacks . | . . . . Combat Hostiles . | . . . . Follow-up Attacks . | . . . . Damage Inflicted 429 | 64 365 . . Guns 177 | 64 113 . . Cannons . | . . . . Explosions 252 | . 252 . . Melee . | . . . . Ramming . | . . . . Kinetic . | . . . . Thermal 252 | . 252 . . Explosive . | . . . . Electromagnetic 177 | 64 113 . . Impact . | . . . . Slashing . | . . . . Piercing . | . . . . Highest Corruption . | . . . . Average Corruption . | . . . . Corruption Purged . | . . . . Overload Shots . | . . . . Overflow Damage 120 | . 120 . . Projectiles . | . . . . Explosions 120 | . 120 . . Melee . | . . . . Knockbacks . | . . . . Impact . | . . . . Kinetic . | . . . . Secondary . | . . . . Self-Inflicted Damage . | . . . . Shots . | . . . . Rammed . | . . . . Targets Rammed . | . . . . Kicked . | . . . . Crushed . | . . . . Highest Temperature 15 | . 15 . . Average Temperature 7 | . 7 . . Received Heat Transfer 159 | . 126 9 24 Siege Activations . | . . . . Robots Corrupted 1 | . 1 . . Combat Hostiles . | . . . . Parts Fried 1 | 1 . . . Impact Corruptions . | . . . . Robots Melted . | . . . . Combat Hostiles . | . . . . Parts Melted . | . . . . Heat Transferred 200 | . 200 . . Parts Sabotaged . | . . . . Parts Stolen . | . . . . Parts Stripped . | . . . . Power Chain Reactions . | . . . . Missiles Intercepted . | . . . . Alert | -11 -10 -9 -9 ------- Run | Scr Mat Mat Sto Peak Influence 131 | 15 131 45 98 Initial 18 | . 9 . 18 Average 26 | 3 34 14 29 Maximum Alert Level . | . . . . Low Security (%) 100 | 100 100 100 100 Level 1 . | . . . . Level 2 . | . . . . Level 3 . | . . . . Level 4 . | . . . . Level 5 . | . . . . High Security . | . . . . Max Security . | . . . . Squads Dispatched 2 | . . . 2 Investigation 1 | . . . 1 Extermination . | . . . . Reinforcement 1 | . . . 1 Assault . | . . . . Garrison . | . . . . Intercept . | . . . . Construction Impeded . | . . . . Haulers Reinforced . | . . . . Stealth | -11 -10 -9 -9 --------- Run | Scr Mat Mat Sto Distress Signals . | . . . . Communications Jammed . | . . . . Distress Signals . | . . . . Times Spotted 31 | . 10 9 12 Peak Tracking Total 10 | . 6 9 10 Tactical Retreats 5 | . 2 2 1 Traps | -11 -10 -9 -9 ------- Run | Scr Mat Mat Sto Traps Triggered . | . . . . Indirectly . | . . . . Trap Hack Attempts . | . . . . Triggered . | . . . . Disarmed . | . . . . Reprogrammed . | . . . . Reused . | . . . . Traps Extracted . | . . . . Installed . | . . . . Triggered . | . . . . Machines | -11 -10 -9 -9 ---------- Run | Scr Mat Mat Sto Machines Disabled 3 | . 3 . . Max in Single Turn 3 | . 3 . . Machines Sabotaged . | . . . . Garrisons Compromised . | . . . . Overloaded Fab Kills . | . . . . Fab Network Shutdowns . | . . . . Hacking | -11 -10 -9 -9 --------- Run | Scr Mat Mat Sto Machines Accessed 9 | . 7 . 2 Terminals 9 | . 7 . 2 Fabricators . | . . . . Repair Stations . | . . . . Recycling Units . | . . . . Scanalyzers . | . . . . Garrison Access . | . . . . Total Hacks 32 | . 25 . 7 Successful 23 | . 19 . 4 Failed 9 | . 6 . 3 Catastrophic . | . . . . Database Lockouts . | . . . . Manual 24 | . 18 . 6 Terminals 32 | . 25 . 7 Fabricators . | . . . . Repair Stations . | . . . . Recycling Units . | . . . . Scanalyzers . | . . . . Garrison Access . | . . . . Terminal Hacks 13 | . 10 . 3 Record 1 | . 1 . . Terminal Index 2 | . 1 . 1 Alert Level 1 | . . . 1 Unreport Threat 3 | . 2 . 1 Maintenance Status 1 | . 1 . . Security Status 1 | . 1 . . Patrol Status 1 | . 1 . . Recall Reinforcements 1 | . 1 . . Zone Layout 2 | . 2 . . Fabricator Hacks . | . . . . Repair Station Hacks . | . . . . Recycling Unit Hacks . | . . . . Scanalyzer . | . . . . Garrison Access Hacks . | . . . . Unauthorized Hacks 10 | . 9 . 1 Terminals 10 | . 9 . 1 Assimilate 2 | . 2 . . Botnet 7 | . 6 . 1 Detonate 1 | . 1 . . Fabricators . | . . . . Repair Stations . | . . . . Recycling Units . | . . . . Scanalyzers . | . . . . Garrison Access . | . . . . Data Cores Recovered . | . . . . Used . | . . . . Hacking Detections 9 | . 7 . 2 Full Trace Events 1 | . . . 1 Feedback Events . | . . . . Feedback Blocked . | . . . . Robot Schematics Acquired . | . . . . Robots Built . | . . . . Matter . | . . . . Time . | . . . . Total Robot Build Rating . | . . . . Part Schematics Acquired . | . . . . Parts Built . | . . . . Matter . | . . . . Time . | . . . . Total Part Build Rating . | . . . . Parts Repaired . | . . . . Time . | . . . . Parts Recycled . | . . . . Recycled Matter . | . . . . Retrieved Matter . | . . . . Retrieved Components . | . . . . Parts Scanalyzed . | . . . . Part Schematics Acquired . | . . . . Parts Damaged . | . . . . Bothacking | -11 -10 -9 -9 ------------ Run | Scr Mat Mat Sto Used RIF Installer . | . . . . Robots Hacked . | . . . . Non-combat . | . . . . Combat . | . . . . Robot Hacks Applied . | . . . . Relay Couplers Released . | . . . . Robots Rewired . | . . . . Allies Hacked . | . . . . Hacks Repelled . | . . . . Allies | -11 -10 -9 -9 -------- Run | Scr Mat Mat Sto Total Allies 1 | . 1 . . Largest Group 1 | . 1 . . Highest-Rated Group 10 | . 10 . . Highest-Rated Ally 10 | . 10 . . Total Orders 1 | . 1 . . FOLLOW 1 | . 1 . . Ally Attacks . | . . . . Total Damage . | . . . . Kills . | . . . . Allies Corrupted . | . . . . Allies Melted . | . . . . Intel | -11 -10 -9 -9 ------- Run | Scr Mat Mat Sto Robot Analysis Total . | . . . . Derelict Logs Recovered . | . . . . Drone Launches . | . . . . Drone Recoveries . | . . . . Exploration | -11 -10 -9 -9 ------------- Run | Scr Mat Mat Sto Turns Passed 417 | 54 222 76 65 Spaces Moved 573 | 51 299 105 118 Core 506 | 51 232 105 118 Treads . | . . . . Legs . | . . . . Wheels 67 | . 67 . . Hover . | . . . . Flight . | . . . . Fastest Speed 50 | 50 50 50 50 Average Speed 54 | 50 58 50 50 Slowest Speed 90 | 50 90 50 50 Overloaded Moves . | . . . . Propulsion Burnouts . | . . . . Robots Hopped . | . . . . Cave-ins Triggered . | . . . . Exploration Rate (%) 24 | 4 55 12 27 Regions Visited 3 Branch Regions 1 Pre-discovered Areas . | . . . . Known Exits Taken 1 | . . 1 . Unknown Exits Taken 2 | 1 1 . . Scrap Searched . | . . . . Spaces Dug . | . . . . Terrain Destroyed 27 | . 27 . . Melee . | . . . . Projectile . | . . . . AOE 27 | . 27 . . Terrain Rammed . | . . . . Walls Destroyed . | . . . . Machines Disabled . | . . . . Actions | -11 -10 -9 -9 --------- Run | Scr Mat Mat Sto Total 660 | 73 337 127 123 Wait 38 | . 15 22 1 Move 570 | 50 298 104 118 Hop . | . . . . Pick Up 12 | 7 4 . 1 Fast Attach 5 | 2 2 . 1 Attach 8 | 1 5 1 1 Detach 4 | 2 2 . . Swap . | . . . . Drop 7 | 4 2 . 1 Fire 16 | 7 9 . . Melee . | . . . . Ram . | . . . . Kick . | . . . . Crush . | . . . . Escape Stasis . | . . . . Rewire . | . . . . Trap . | . . . . Miscellaneous . | . . . . Route ------- -11/Scrapyard -10/Materials (discovered 2 exits: [*Mat x2]) -9/Materials -9/Storage History --------- Turn | Location | Event 14 | -11/Scrapyard | Discovered new exit (range 16) 55 | -11/Scrapyard | Entered Materials 171 | -10/Materials | Discovered new exit (range 18) 171 | -10/Materials | Discovered new exit (range 20) 277 | -10/Materials | Entered another Materials area 277 | -9/Materials | Evolved 2 slots: Utility x2 300 | -9/Materials | Lost 3 parts (1p1n1w) 317 | -9/Materials | Build established: Mutant 343 | -9/Materials | Discovered new exit (range 16) 351 | -9/Materials | Identified exit to Storage 353 | -9/Materials | Entered Storage 401 | -9/Storage | Core integrity fell below 50% 418 | -9/Storage | Self-destructed Last Messages --------------- >>Alert(Purge) Purged threat record, alert level lowered. >>Index(Terminals) Found 11 terminals. Downloaded coordinate data. >>Alert(Check) Current Alert Level: Low Security 00395_ Acquired Imp. Signal Interpreter. 00399_ O-16 Technician: "IFF HANDSHAKE FAILED. SECURING TERMINAL." 00400_ C-30 ARC bursts open, deploying its payload. 00400_ B-36 Bruiser unfolds itself. 00400_ G-34 Mercenary unfolds itself. 00403_ ALERT: Hostiles spotted, dispatching reinforcements to Terminal S009. 00409_ Connecting with Terminal... 00409_ ALERT: Suspicious activity at Terminal S011. Dispatching Investigation squad. 00411_ Cooling System destroyed. 00413_ Connecting with Door Terminal... 00416_ K-01 Serf cleans the Transfer Shaft. Map ----- +----------------------------------------------------+ | | | | | | | | | | | | | | | | | | | | | | | | | | | | | | | | | | | | | | | ???????????????????###############?????????? | | ???????????????????# #?????????? | | ???????????????????# k #?????????? | | ???????????????????# """ """ """ #?????????? | | ???????????????????# """ """ """ #?????????? | | ???????????????????# """k""" """ #?????????? | | ???????????????????# @ sss ###???????? | | ???????????????+###############+##T#"??????? | | ???????????????? "??????? | | ???????????????? "??????? | | ??????????????????# " " #####/####"??????? | | ??????????????????# "R" ## #?????????? | | ??????????????????# """ ## #?????????? | | ??????????????????#! ## ###???????? | | ??????????????????# / ""#???????? | | ????????????????#?# ####+## """ ""#???????? | | ?????????######## # # # """ T"#???????? | | ?????????+ % # + [# """ ""#???????? | | ?????????# """ / #[ # ""#???????? | | ?????????# """ # # # """ ###???????? | | ?????????? """ # # # """ #?????????? | | ?????????? ?# # # """ #?????????? | | ??????????? """?# # # #?????????? | | ?????????? ""??# # #######?????????? | | ?????????? ""??# / #???????????????? | | ?????????? ???# # #???????????????? | | ?????????#????????# # #???????????????? | | ??????????????????# # #???????????????? | | ??????????????????# #######???????????????? | | ?????????????????## ##????????????????????? | | ?????????????????# !######???????????????? | +----------------------------------------------------+ Best States ------------- Heat Dissipation 35 Energy Generation 10 Energy Capacity 125 Matter Stores 300 Matter Capacity 300 Sight Range 16 Terrain Scan Density 10 Evasion (%) 50 Offensive Hacking 10 Item Schematics ----------------- None Robot Schematics ------------------ None Fabricated ------------ Nothing Alien Tech Used ----------------- None Achievements -------------- None Challenges ------------ None Game ------ Seed AnalysisPotentialRay Manual? 0 Play Time 00:15:41 Cumulative 110.3 hours Start 2020.12.13 @ 05:05:19 End 2021.03.06 @ 10:22:39 Sessions 2 Manual Loads 0 Difficulty Rogue Special Mode None Game No. 82 Rogue 82 Adventurer 0 Explorer 0 Win Type - Total 1 Types 1/0/0/0/0/0/0/0/0 Lore% 40 Gallery% 57 Achievement% 45 Wizard Run 0 Options --------- ASCII 0 Keyboard 0 Movement Numpad Keybinds 0 Fullscreen 0 Font 16/SmallcapsGlow Map View 76x50 Tactical HUD 1 Map Filters NONE Filters NONE Steam 1 RUN: afe2a012-36b3-42d8-822c-edd1ece252f1